fUST/lending_fUST_20250603
["ID","MTS","AMOUNT","RATE_DAILY","PERIOD"]
[363984613,1748952655916,-489.81,0.00018082,2]
[363984614,1748952655927,-1251.901864,0.00018082,2]
[363984615,1748952655937,-440.0,0.00018082,2]
[363984616,1748952655947,-440.0,0.00018082,2]
[363984617,1748952655956,-1260.085886,0.00018082,2]
[363984618,1748952655966,-440.0,0.00018082,2]
[363984619,1748952655977,-440.0,0.00018082,2]
[363984620,1748952655986,-1260.085886,0.00018082,2]
[363984621,1748952655996,-380.0,0.00018082,2]
[363984622,1748952656006,-440.0,0.00018082,2]
[363984623,1748952656015,-2199.288136,0.00018082,2]
[363984624,1748952656024,-2199.288136,0.00018082,2]
[363984625,1748952656034,-775.51,0.00018082,2]
[363984626,1748952656044,-440.0,0.00018082,2]
[363984627,1748952656053,-151.0,0.00018082,2]
[363984628,1748952656063,-440.0,0.00018082,2]
[363984629,1748952656074,-328.03307538,0.00018082,2]
[363984630,1748952656083,-440.0,0.00018082,2]
[363984631,1748952656093,-830.89,0.00018082,2]
[363984632,1748952656102,-721.62,0.00018082,2]
[363984633,1748952656112,-658.97,0.00018082,2]
[363984634,1748952656122,-440.0,0.00018082,2]
[363984635,1748952656131,-440.0,0.00018082,2]
[363984636,1748952656141,-440.0,0.00018082,2]
[363984637,1748952656151,-440.0,0.00018082,2]
[363984638,1748952656161,-440.0,0.00018082,2]
[363984639,1748952656170,-371.6516569,0.00018082,2]
[363984640,1748952656180,-793.39,0.00018082,2]
[363984641,1748952656190,-440.0,0.00018082,2]
[363984642,1748952656200,-508.222266,0.00018082,2]
[363984643,1748952656210,-410.0,0.00018082,2]
[363984644,1748952656219,-508.222266,0.00018082,2]
[363984645,1748952656229,-440.0,0.00018082,2]
[363984646,1748952656239,-219.376256,0.00018082,2]
[363984647,1748952656249,-440.0,0.00018082,2]
[363984648,1748952656339,-219.376256,0.00018082,2]
[363984649,1748952656350,-151.0,0.00018082,2]
[363984650,1748952656359,-910.15,0.00018082,2]
[363984651,1748952656369,-440.0,0.00018082,2]
[363984652,1748952656379,-440.0,0.00018082,2]
[363984653,1748952656389,-440.0,0.00018082,2]
[363984654,1748952656399,-471.22490982,0.00018082,2]
[363984655,1748952656408,-1158.85,0.00018082,2]
[363984656,1748952656418,-440.0,0.00018082,2]
[363984657,1748952656429,-440.0,0.00018082,2]
[363984658,1748952656438,-1354.75,0.00018082,2]
[363984659,1748952656448,-4178.31,0.00018082,2]
[363984660,1748952656457,-440.0,0.00018082,2]
[363984661,1748952656467,-440.0,0.00018082,2]
[363984662,1748952656476,-1406.66,0.00018082,2]
[363984663,1748952656487,-490.39,0.00018082,2]
[363984664,1748952656496,-4549.64,0.00018082,2]
[363984665,1748952656506,-220.0,0.00018082,2]
[363984666,1748952656515,-440.0,0.00018082,2]
[363984667,1748952656524,-440.0,0.00018082,2]
[363984668,1748952656534,-6349.53,0.00018082,2]
[363984669,1748952656543,-388.50620666,0.00018082,2]
[363984670,1748952656552,-464.87,0.00018082,2]
[363984671,1748952656562,-1054.94,0.00018082,2]
[363984672,1748952656571,-440.0,0.00018082,2]
[363984673,1748952656580,-2078.29,0.00018082,2]
[363984674,1748952656589,-975.51,0.00018082,2]
[363984675,1748952656599,-440.0,0.00018082,2]
[363984676,1748952656608,-440.0,0.00018082,2]
[363984677,1748952656617,-440.0,0.00018082,2]
[363984678,1748952656627,-227.66782743,0.00018082,2]
[363984679,1748952656636,-1037.57,0.00018082,2]
[363984680,1748952656645,-2003.58,0.00018082,2]
[363984681,1748952656655,-650.22,0.00018082,2]
[363984682,1748952656664,-440.0,0.00018082,2]
[363984683,1748952656674,-254.486073,0.00018082,2]
[363984684,1748952656683,-362.7260579,0.00018082,2]
[363984685,1748952656692,-494.09,0.00018082,2]
[363984686,1748952656702,-159.138728,0.00018082,2]
[363984687,1748952656711,-254.486073,0.00018082,2]
[363984688,1748952656723,-159.138728,0.00018082,2]
[363984689,1748952656732,-1252.89,0.00018082,2]
[363984690,1748952656741,-233.890873,0.00018082,2]
[363984691,1748952656751,-440.0,0.00018082,2]
[363984692,1748952656760,-233.890873,0.00018082,2]
[363984693,1748952656769,-606.62,0.00018082,2]
[363984694,1748952656778,-440.0,0.00018082,2]
[363984695,1748952656787,-440.0,0.00018082,2]
[363984696,1748952656797,-3573.9,0.00018082,2]
[363984697,1748952656806,-440.0,0.00018082,2]
[363984698,1748952656815,-440.0,0.00018082,2]
[363984699,1748952656825,-440.0,0.00018082,2]
[363984700,1748952656834,-440.0,0.00018082,2]
[363984701,1748952656843,-510.62,0.00018082,2]
[363984702,1748952656852,-502.20266793,0.00018082,2]
[363984703,1748952656862,-4695.14,0.00018082,2]
[363984704,1748952656871,-440.0,0.00018082,2]
[363984705,1748952656880,-444.57,0.00018082,2]
[363984706,1748952656890,-440.0,0.00018082,2]
[363984707,1748952656899,-1259.89,0.00018082,2]
[363984708,1748952656905,-460.72,0.00018082,2]
[363984709,1748952656915,-508.42,0.00018082,2]
[363984710,1748952656924,-343.870631,0.00018082,2]
[363984711,1748952656932,-1819.71,0.00018082,2]
[363984712,1748952656940,-2376.31,0.00018082,2]
[363984713,1748952656947,-440.0,0.00018082,2]
[363984714,1748952656956,-440.0,0.00018082,2]
[363984715,1748952656964,-568.6,0.00018082,2]
[363984716,1748952656973,-440.0,0.00018082,2]
[363984717,1748952656981,-440.0,0.00018082,2]
[363984718,1748952656993,-772.08,0.00018082,2]
[363984719,1748952657000,-858.11,0.00018082,2]
[363984720,1748952657008,-806.74,0.00018082,2]
[363984721,1748952657015,-534.92,0.00018082,2]
[363984722,1748952657023,-948.51,0.00018082,2]
[363984723,1748952657032,-541.04,0.00018082,2]
[363984724,1748952657040,-2900.83,0.00018082,2]
[363984725,1748952657048,-3172.41,0.00018082,2]
[363984726,1748952657056,-944.55,0.00018082,2]
[363984727,1748952657065,-178.079884,0.00018082,2]
[363984728,1748952657074,-440.0,0.00018082,2]
[363984729,1748952657084,-178.079884,0.00018082,2]
[363984730,1748952657095,-440.0,0.00018082,2]
[363984731,1748952657104,-440.0,0.00018082,2]
[363984732,1748952657115,-750.33,0.00018082,2]
[363984733,1748952657124,-440.0,0.00018082,2]
[363984734,1748952657134,-491.8,0.00018082,2]
[363984735,1748952657144,-440.0,0.00018082,2]
[363984736,1748952657154,-5029.01,0.00018082,2]
[363984737,1748952657163,-1740.48,0.00018082,2]
[363984738,1748952657173,-1274.01,0.00018082,2]
[363984739,1748952657182,-5951.72,0.00018082,2]
[363984740,1748952657192,-440.0,0.00018082,2]
[363984741,1748952657201,-151.0,0.00018082,2]
[363984742,1748952657210,-5342.18,0.00018082,2]
[363984743,1748952657220,-409.08174055,0.00018082,2]
[363984744,1748952657230,-440.0,0.00018082,2]
[363984745,1748952657239,-440.0,0.00018082,2]
[363984746,1748952657248,-17743.27,0.00018082,2]
[363984747,1748952657257,-440.0,0.00018082,2]
[363984748,1748952657267,-151.0,0.000181,2]
[363984749,1748952657276,-501.20381697,0.00018121,2]
[363984750,1748952657285,-212.86879254,0.00018125,2]
[363984751,1748952657295,-842.5625,0.00018125,2]
[363984752,1748952657305,-160.0,0.00018125,2]
[363984753,1748952657316,-12670.76136593,0.00018125,2]
[363984754,1748952657325,-160.0,0.00018125,2]
[363984755,1748952657335,-11355.67902676,0.00018172,2]
[363984756,1748952657345,-151.0,0.000182,2]
[363984757,1748952657355,-3578.413053,0.00018224,2]
[363984758,1748952657366,-3578.413053,0.00018224,2]
[363984759,1748952657375,-151.0,0.00018224,2]
[363984760,1748952657385,-159.138728,0.00018224,2]
[363984761,1748952657395,-159.138728,0.00018224,2]
[363984762,1748952657406,-178.079884,0.00018224,2]
[363984763,1748952657416,-178.079884,0.00018224,2]
[363984764,1748952657426,-3488.49746002,0.00018279,2]
[363984765,1748952657436,-2804.6,0.00018346,3]
[363984766,1748952657445,-2804.6,0.00018346,3]
[363984767,1748952657454,-705.527346,0.00018346,2]
[363984768,1748952657463,-705.527346,0.00018346,2]
[363984769,1748952657473,-195.040772,0.00018346,2]
[363984770,1748952657483,-195.040772,0.00018346,2]
[363984771,1748952657493,-1090.69,0.00018355,2]
[363984772,1748952657503,-440.0,0.00018355,2]
[363984773,1748952657513,-536.34,0.00018356,2]
[363984774,1748952657522,-440.0,0.00018356,2]
[363984775,1748952657531,-705.527346,0.00018356,2]
[363984776,1748952657541,-705.527346,0.00018356,2]
[363984777,1748952657550,-440.0,0.00018356,2]
[363984778,1748952657559,-440.0,0.00018356,2]
[363984779,1748952657569,-195.040772,0.00018356,2]
[363984780,1748952657578,-195.040772,0.00018356,2]
[363984781,1748952657588,-151.0,0.00018356,2]
[363984782,1748952657703,-528.93,0.00018356,2]
[363984783,1748952657713,-151.0,0.00018356,2]
[363984784,1748952657727,-151.0,0.00018356,2]
[363984785,1748952657737,-440.0,0.00018356,2]
[363984786,1748952657747,-440.0,0.00018356,2]
[363984787,1748952657758,-440.0,0.00018356,2]
[363984788,1748952657767,-151.0,0.00018356,2]
[363984789,1748952657776,-505.159112,0.00018356,2]
[363984790,1748952657786,-440.0,0.00018356,2]
[363984791,1748952657798,-151.0,0.00018356,2]
[363984792,1748952657808,-417.52044542,0.00018356,2]
[363984793,1748952657818,-3956.175787,0.00018356,2]
[363984794,1748952657827,-962.74,0.00018356,2]
[363984795,1748952657838,-3956.175787,0.00018356,2]
[363984796,1748952657849,-440.0,0.00018356,2]
[363984797,1748952657859,-440.0,0.00018356,2]
[363984798,1748952657868,-749.18,0.00018356,2]
[363984799,1748952657877,-440.0,0.00018356,2]
[363984800,1748952657888,-440.0,0.00018356,2]
[363984801,1748952657898,-929.53,0.00018356,2]
[363984802,1748952657908,-440.0,0.00018356,2]
[363984803,1748952657918,-340.0,0.00018356,2]
[363984804,1748952657928,-440.0,0.00018356,2]
[363984805,1748952657937,-440.0,0.00018356,2]
[363984806,1748952657947,-440.0,0.00018356,2]
[363984807,1748952657957,-502.65,0.00018356,2]
[363984808,1748952657966,-440.0,0.00018356,2]
[363984809,1748952657976,-440.0,0.00018356,2]
[363984810,1748952657986,-1251.901864,0.00018356,2]
[363984811,1748952657996,-489.81,0.00018356,2]
[363984812,1748952658006,-1251.901864,0.00018356,2]
[363984813,1748952658015,-350.0,0.00018356,2]
[363984814,1748952658024,-440.0,0.00018356,2]
[363984815,1748952658034,-1260.085886,0.00018356,2]
[363984816,1748952658044,-440.0,0.00018356,2]
[363984817,1748952658054,-440.0,0.00018356,2]
[363984818,1748952658065,-1260.085886,0.00018356,2]
[363984819,1748952658074,-440.0,0.00018356,2]
[363984820,1748952658083,-2199.288136,0.00018356,2]
[363984821,1748952658092,-2199.288136,0.00018356,2]
[363984822,1748952658102,-775.51,0.00018356,2]
[363984823,1748952658112,-440.0,0.00018356,2]
[363984824,1748952658122,-151.0,0.00018356,2]
[363984825,1748952658132,-440.0,0.00018356,2]
[363984826,1748952658141,-440.0,0.00018356,2]
[363984827,1748952658152,-830.89,0.00018356,2]
[363984828,1748952658161,-721.62,0.00018356,2]
[363984829,1748952658173,-658.97,0.00018356,2]
[363984830,1748952658183,-440.0,0.00018356,2]
[363984831,1748952658192,-440.0,0.00018356,2]
[363984832,1748952658202,-440.0,0.00018356,2]
[363984833,1748952658212,-440.0,0.00018356,2]
[363984834,1748952658222,-440.0,0.00018356,2]
[363984835,1748952658231,-793.39,0.00018356,2]
[363984836,1748952658241,-440.0,0.00018356,2]
[363984837,1748952658251,-508.222266,0.00018356,2]
[363984838,1748952658260,-508.222266,0.00018356,2]
[363984839,1748952658270,-440.0,0.00018356,2]
[363984840,1748952658279,-219.376256,0.00018356,2]
[363984841,1748952658288,-440.0,0.00018356,2]
[363984842,1748952658297,-219.376256,0.00018356,2]
[363984843,1748952658306,-151.0,0.00018356,2]
[363984844,1748952658315,-910.15,0.00018356,2]
[363984845,1748952658324,-166.54201458,0.00018356,2]
[363984846,1748952658333,-440.0,0.00018356,2]
[363984847,1748952658343,-440.0,0.00018356,2]
[363984848,1748952658353,-1158.85,0.00018356,2]
[363984849,1748952658362,-440.0,0.00018356,2]
[363984850,1748952658372,-440.0,0.00018356,2]
[363984851,1748952658381,-1354.75,0.00018356,2]
[363984852,1748952658391,-4178.31,0.00018356,2]
[363984853,1748952658401,-440.0,0.00018356,2]
[363984854,1748952658410,-440.0,0.00018356,2]
[363984855,1748952658421,-1406.66,0.00018356,2]
[363984856,1748952658431,-490.39,0.00018356,2]
[363984857,1748952658440,-4549.64,0.00018356,2]
[363984858,1748952658451,-440.0,0.00018356,2]
[363984859,1748952658460,-440.0,0.00018356,2]
[363984860,1748952658470,-6349.53,0.00018356,2]
[363984861,1748952658479,-464.87,0.00018356,2]
[363984862,1748952658489,-1054.94,0.00018356,2]
[363984863,1748952658499,-440.0,0.00018356,2]
[363984864,1748952658508,-2078.29,0.00018356,2]
[363984865,1748952658518,-975.51,0.00018356,2]
[363984866,1748952658528,-440.0,0.00018356,2]
[363984867,1748952658538,-440.0,0.00018356,2]
[363984868,1748952658549,-440.0,0.00018356,2]
[363984869,1748952658559,-1037.57,0.00018356,2]
[363984870,1748952658570,-2003.58,0.00018356,2]
[363984871,1748952658580,-650.22,0.00018356,2]
[363984872,1748952658590,-440.0,0.00018356,2]
[363984873,1748952658601,-254.486073,0.00018356,2]
[363984874,1748952658612,-494.09,0.00018356,2]
[363984875,1748952658622,-159.138728,0.00018356,2]
[363984876,1748952658632,-254.486073,0.00018356,2]
[363984877,1748952658642,-159.138729,0.00018356,2]
[363984878,1748952658651,-1252.89,0.00018356,2]
[363984879,1748952658662,-233.890873,0.00018356,2]
[363984880,1748952658673,-440.0,0.00018356,2]
[363984881,1748952658683,-233.890873,0.00018356,2]
[363984882,1748952658694,-606.62,0.00018356,2]
[363984883,1748952658710,-440.0,0.00018356,2]
[363984884,1748952658730,-440.0,0.00018356,2]
[363984885,1748952658741,-3573.9,0.00018356,2]
[363984886,1748952658751,-440.0,0.00018356,2]
[363984887,1748952658763,-440.0,0.00018356,2]
[363984888,1748952658774,-440.0,0.00018356,2]
[363984889,1748952658785,-440.0,0.00018356,2]
[363984890,1748952658795,-510.62,0.00018356,2]
[363984891,1748952658808,-4695.14,0.00018356,2]
[363984892,1748952658819,-320.0,0.00018356,2]
[363984893,1748952658826,-444.57,0.00018356,2]
[363984894,1748952658835,-440.0,0.00018356,2]
[363984895,1748952658844,-1259.89,0.00018356,2]
[363984896,1748952658855,-460.72,0.00018356,2]
[363984897,1748952658865,-508.42,0.00018356,2]
[363984898,1748952658876,-1819.71,0.00018356,2]
[363984899,1748952658886,-2376.31,0.00018356,2]
[363984900,1748952658896,-440.0,0.00018356,2]
[363984901,1748952658906,-440.0,0.00018356,2]
[363984902,1748952658915,-568.6,0.00018356,2]
[363984903,1748952658925,-440.0,0.00018356,2]
[363984904,1748952658935,-440.0,0.00018356,2]
[363984905,1748952659029,-772.08,0.00018356,2]
[363984906,1748952659040,-858.11,0.00018356,2]
[363984907,1748952659050,-806.74,0.00018356,2]
[363984908,1748952659060,-534.92,0.00018356,2]
[363984909,1748952659070,-948.51,0.00018356,2]
[363984910,1748952659080,-541.04,0.00018356,2]
[363984911,1748952659090,-2900.83,0.00018356,2]
[363984912,1748952659101,-3172.41,0.00018356,2]
[363984913,1748952659110,-944.55,0.00018356,2]
[363984914,1748952659120,-178.079884,0.00018356,2]
[363984915,1748952659130,-440.0,0.00018356,2]
[363984916,1748952659140,-219.2560603,0.00018356,2]
[363984917,1748952659150,-178.079877,0.00018356,2]
[363984918,1748952659159,-440.0,0.00018356,2]
[363984919,1748952659169,-750.33,0.00018356,2]
[363984920,1748952659179,-440.0,0.00018356,2]
[363984921,1748952659189,-491.8,0.00018356,2]
[363984922,1748952659199,-440.0,0.00018356,2]
[363984923,1748952659209,-5029.01,0.00018356,2]
[363984924,1748952659218,-1740.48,0.00018356,2]
[363984925,1748952659228,-1274.01,0.00018356,2]
[363984926,1748952659237,-5951.72,0.00018356,2]
[363984927,1748952659247,-486.90070196,0.00018356,2]
[363984928,1748952659256,-5342.18,0.00018356,2]
[363984929,1748952659266,-152.476461,0.00018356,2]
[363984930,1748952659275,-440.0,0.00018356,2]
[363984931,1748952659285,-575.56541272,0.00018356,2]
[363984932,1748952659294,-17743.27,0.00018356,2]
[363984933,1748952659303,-440.0,0.00018356,2]
[363984934,1748952659313,-151.0,0.000184,2]
[363984935,1748952659323,-3488.49746002,0.00018555,2]
[363984936,1748952659332,-3578.413053,0.00018624,2]
[363984937,1748952659342,-3578.413053,0.00018624,2]
[363984938,1748952659357,-1090.69,0.00018629,2]
[363984939,1748952659373,-440.0,0.00018629,2]
[363984940,1748952659384,-536.34,0.0001863,2]
[363984941,1748952659394,-443.31389082,0.0001863,2]
[363984942,1748952659405,-705.527346,0.0001863,2]
[363984943,1748952659416,-705.527346,0.0001863,2]
[363984944,1748952659429,-440.0,0.0001863,2]
[363984945,1748952659440,-440.0,0.0001863,2]
[363984946,1748952659451,-195.040772,0.0001863,2]
[363984947,1748952659462,-195.040772,0.0001863,2]
[363984948,1748952659472,-528.93,0.0001863,2]
[363984949,1748952659482,-290.0,0.0001863,2]
[363984950,1748952659492,-440.0,0.0001863,2]
[363984951,1748952659501,-440.0,0.0001863,2]
[363984952,1748952659512,-155.651202,0.0001863,2]
[363984953,1748952659522,-440.0,0.0001863,2]
[363984954,1748952659532,-151.0,0.0001863,2]
[363984955,1748952659543,-962.74,0.0001863,2]
[363984956,1748952659553,-440.0,0.0001863,2]
[363984957,1748952659563,-440.0,0.0001863,2]
[363984958,1748952659573,-749.18,0.0001863,2]
[363984959,1748952659583,-440.0,0.0001863,2]
[363984960,1748952659593,-440.0,0.0001863,2]
[363984961,1748952659603,-929.53,0.0001863,2]
[363984962,1748952659634,-440.0,0.0001863,2]
[363984963,1748952659651,-440.0,0.0001863,2]
[363984964,1748952659672,-440.0,0.0001863,2]
[363984965,1748952659693,-440.0,0.0001863,2]
[363984966,1748952659712,-502.65,0.0001863,2]
[363984967,1748952659734,-440.0,0.0001863,2]
[363984968,1748952659752,-440.0,0.0001863,2]
[363984969,1748952659765,-1251.901864,0.0001863,2]
[363984970,1748952659781,-489.81,0.0001863,2]
[363984971,1748952659800,-1251.901864,0.0001863,2]
[363984972,1748952659821,-440.0,0.0001863,2]
[363984973,1748952659835,-440.0,0.0001863,2]
[363984974,1748952659855,-1260.085886,0.0001863,2]
[363984975,1748952659869,-440.0,0.0001863,2]
[363984976,1748952659886,-1260.085886,0.0001863,2]
[363984977,1748952659902,-440.0,0.0001863,2]
[363984978,1748952659918,-2199.288136,0.0001863,2]
[363984979,1748952659936,-2199.288136,0.0001863,2]
[363984980,1748952659960,-775.51,0.0001863,2]
[363984981,1748952659978,-316.95083678,0.0001863,2]
[363984982,1748952659993,-195.442183,0.0001863,2]
[363984983,1748952660012,-440.0,0.0001863,2]
[363984984,1748952660029,-440.0,0.0001863,2]
[363984985,1748952660046,-830.89,0.0001863,2]
[363984986,1748952660062,-721.62,0.0001863,2]
[363984987,1748952660079,-658.97,0.0001863,2]
[363984988,1748952660094,-440.0,0.0001863,2]
[363984989,1748952660109,-440.0,0.0001863,2]
[363984990,1748952660124,-440.0,0.0001863,2]
[363984991,1748952660140,-440.0,0.0001863,2]
[363984992,1748952660155,-440.0,0.0001863,2]
[363984993,1748952660170,-793.39,0.0001863,2]
[363984994,1748952660186,-440.0,0.0001863,2]
[363984995,1748952660201,-508.222266,0.0001863,2]
[363984996,1748952660217,-508.222266,0.0001863,2]
[363984997,1748952660232,-440.0,0.0001863,2]
[363984998,1748952660248,-219.376256,0.0001863,2]
[363984999,1748952660262,-440.0,0.0001863,2]
[363985000,1748952660277,-219.376256,0.0001863,2]
[363985001,1748952660294,-910.15,0.0001863,2]
[363985002,1748952660313,-440.0,0.0001863,2]
[363985003,1748952660328,-440.0,0.0001863,2]
[363985004,1748952660345,-1158.85,0.0001863,2]
[363985005,1748952660360,-440.0,0.0001863,2]
[363985006,1748952660378,-320.0,0.0001863,2]
[363985007,1748952660395,-1354.75,0.0001863,2]
[363985008,1748952660411,-4178.31,0.0001863,2]
[363985009,1748952660428,-440.0,0.0001863,2]
[363985010,1748952660443,-440.0,0.0001863,2]
[363985011,1748952660459,-1406.66,0.0001863,2]
[363985012,1748952660474,-490.39,0.0001863,2]
[363985013,1748952660489,-4549.64,0.0001863,2]
[363985014,1748952660504,-440.0,0.0001863,2]
[363985015,1748952660519,-440.0,0.0001863,2]
[363985016,1748952660534,-6349.53,0.0001863,2]
[363985017,1748952660549,-464.87,0.0001863,2]
[363985018,1748952660668,-1054.94,0.0001863,2]
[363985019,1748952660681,-457.80384565,0.0001863,2]
[363985020,1748952660690,-2078.29,0.0001863,2]
[363985021,1748952660700,-975.51,0.0001863,2]
[363985022,1748952660710,-440.0,0.0001863,2]
[363985023,1748952660722,-440.0,0.0001863,2]
[363985024,1748952660731,-440.0,0.0001863,2]
[363985025,1748952660741,-1037.57,0.0001863,2]
[363985026,1748952660751,-2003.58,0.0001863,2]
[363985027,1748952660762,-650.22,0.0001863,2]
[363985028,1748952660772,-440.0,0.0001863,2]
[363985029,1748952660781,-254.486073,0.0001863,2]
[363985030,1748952660791,-494.09,0.0001863,2]
[363985031,1748952660802,-254.486073,0.0001863,2]
[363985032,1748952660812,-1252.89,0.0001863,2]
[363985033,1748952660822,-233.890873,0.0001863,2]
[363985034,1748952660831,-440.0,0.0001863,2]
[363985035,1748952660841,-233.890873,0.0001863,2]
[363985036,1748952660851,-606.62,0.0001863,2]
[363985037,1748952660860,-440.0,0.0001863,2]
[363985038,1748952660870,-440.0,0.0001863,2]
[363985039,1748952660880,-3573.9,0.0001863,2]
[363985040,1748952660889,-440.0,0.0001863,2]
[363985041,1748952660899,-440.0,0.0001863,2]
[363985042,1748952660910,-440.0,0.0001863,2]
[363985043,1748952660920,-440.0,0.0001863,2]
[363985044,1748952660931,-510.62,0.0001863,2]
[363985045,1748952660941,-4695.14,0.0001863,2]
[363985046,1748952660951,-444.57,0.0001863,2]
[363985047,1748952660961,-440.0,0.0001863,2]
[363985048,1748952660971,-1259.89,0.0001863,2]
[363985049,1748952660980,-460.72,0.0001863,2]
[363985050,1748952660989,-508.42,0.0001863,2]
[363985051,1748952660999,-1819.71,0.0001863,2]
[363985052,1748952661008,-2376.31,0.0001863,2]
[363985053,1748952661017,-440.0,0.0001863,2]
[363985054,1748952661027,-440.0,0.0001863,2]
[363985055,1748952661038,-568.6,0.0001863,2]
[363985056,1748952661047,-440.0,0.0001863,2]
[363985057,1748952661056,-440.0,0.0001863,2]
[363985058,1748952661065,-772.08,0.0001863,2]
[363985059,1748952661075,-806.74,0.0001863,2]
[363985060,1748952661085,-858.11,0.0001863,2]
[363985061,1748952661094,-534.92,0.0001863,2]
[363985062,1748952661103,-948.51,0.0001863,2]
[363985063,1748952661113,-541.04,0.0001863,2]
[363985064,1748952661122,-2900.83,0.0001863,2]
[363985065,1748952661133,-3172.41,0.0001863,2]
[363985066,1748952661142,-944.55,0.0001863,2]
[363985067,1748952661152,-440.0,0.0001863,2]
[363985068,1748952661161,-440.0,0.0001863,2]
[363985069,1748952661171,-750.33,0.0001863,2]
[363985070,1748952661181,-440.0,0.0001863,2]
[363985071,1748952661191,-491.8,0.0001863,2]
[363985072,1748952661201,-440.0,0.0001863,2]
[363985073,1748952661211,-5029.01,0.0001863,2]
[363985074,1748952661220,-1740.48,0.0001863,2]
[363985075,1748952661230,-5951.72,0.0001863,2]
[363985076,1748952661239,-1274.01,0.0001863,2]
[363985077,1748952661248,-5342.18,0.0001863,2]
[363985078,1748952661258,-440.0,0.0001863,2]
[363985079,1748952661267,-17743.27,0.0001863,2]
[363985080,1748952661277,-440.0,0.0001863,2]
[363985081,1748952661287,-6899.50677586,0.00018665,2]
[363985082,1748952661296,-600.0,0.00018717,2]
[363985083,1748952661306,-500.0,0.00018717,2]
[363985084,1748952661316,-500.0,0.00018717,2]
[363985085,1748952661325,-500.0,0.00018717,2]
[363985086,1748952661336,-500.24804547,0.00018717,2]
[363985087,1748952661346,-500.0,0.00018717,2]
[363985088,1748952661357,-3488.49746002,0.00018831,2]
[363985089,1748952661366,-513.98861648,0.00018866,2]
[363985090,1748952661376,-505.159112,0.000189,2]
[363985091,1748952661386,-3956.175787,0.000189,2]
[363985092,1748952661395,-3956.175787,0.000189,2]
[363985093,1748952661405,-2155.33709091,0.000189,2]
[363985094,1748952661415,-151.0,0.00018903,2]
[363985095,1748952661426,-151.0,0.00018903,2]
[363985096,1748952661435,-151.0,0.00018903,2]
[363985097,1748952661446,-3578.413053,0.00018903,2]
[363985098,1748952661455,-3578.413053,0.00018903,2]
[363985099,1748952661465,-1090.69,0.00018903,2]
[363985100,1748952661475,-440.0,0.00018903,2]
[363985101,1748952661484,-536.34,0.00018904,2]
[363985102,1748952661494,-320.0,0.00018904,2]
[363985103,1748952661504,-440.0,0.00018904,2]
[363985104,1748952661514,-528.93,0.00018904,2]
[363985105,1748952661523,-440.0,0.00018904,2]
[363985106,1748952661533,-440.0,0.00018904,2]
[363985107,1748952661542,-440.0,0.00018904,2]
[363985108,1748952661552,-151.0,0.00018904,2]
[363985109,1748952661562,-962.74,0.00018904,2]
[363985110,1748952661572,-440.0,0.00018904,2]
[363985111,1748952661582,-440.0,0.00018904,2]
[363985112,1748952661591,-749.18,0.00018904,2]